[Event "Titled Tuesday Blitz April 4 Early 2023"]
[White "Kohler, Aran"]
[Black "Erzhanov, Arman"]
[WhiteFideId "1002856"]
[BlackFideId "4138821"]
[WhiteElo "2304"]
[BlackElo "2138"]
[Result "0-1"]
[Round "11"]
[TimeControl "180+2"]
[Date "2023.04.04"]
[WhiteClock "0:00:12"]
[BlackClock "0:00:48"]

1. d4 {[%clk 0:02:59]}  d6 {[%clk 0:02:54]} 2. Nf3 {[%clk 0:02:58]}  g6 {[%clk 0:02:54]} 3. Bg5 {[%clk 0:02:57]}  Bg7 {[%clk 0:02:54]} 4. c3 {[%clk 0:02:56]}  h6 {[%clk 0:02:53]} 5. Bh4 {[%clk 0:02:55]}  Nd7 {[%clk 0:02:52]} 6. e3 {[%clk 0:02:54]}  Ngf6 {[%clk 0:02:53]} 7. Nbd2 {[%clk 0:02:51]}  O-O {[%clk 0:02:53]} 8. Bd3 {[%clk 0:02:49]}  e5 {[%clk 0:02:52]} 9. Qb3 {[%clk 0:02:35]}  Re8 {[%clk 0:02:47]} 10. Bxg6 {[%clk 0:02:32]}  Qe7 {[%clk 0:02:40]} 11. Bb1 {[%clk 0:02:09]}  c6 {[%clk 0:02:32]} 12. O-O {[%clk 0:01:52]}  d5 {[%clk 0:02:32]} 13. dxe5 {[%clk 0:01:51]}  Nxe5 {[%clk 0:02:33]} 14. Nxe5 {[%clk 0:01:52]}  Qxe5 {[%clk 0:02:32]} 15. Qc2 {[%clk 0:01:45]}  Kf8 {[%clk 0:02:30]} 16. Bg3 {[%clk 0:01:42]}  Qh5 {[%clk 0:02:29]} 17. Bd6+ {[%clk 0:01:38]}  Kg8 {[%clk 0:02:29]} 18. Qd1 {[%clk 0:01:27]}  Bg4 {[%clk 0:02:27]} 19. f3 {[%clk 0:01:25]}  Bf5 {[%clk 0:02:27]} 20. g4 {[%clk 0:01:12]}  Nxg4 {[%clk 0:02:27]} 21. fxg4 {[%clk 0:01:12]}  Bxg4 {[%clk 0:02:27]} 22. Qe1 {[%clk 0:01:05]}  Re6 {[%clk 0:02:20]} 23. Bg3 {[%clk 0:01:04]}  Rae8 {[%clk 0:02:20]} 24. Qf2 {[%clk 0:01:01]}  Rxe3 {[%clk 0:02:18]} 25. Bf5 {[%clk 0:00:45]}  Bxf5 {[%clk 0:01:14]} 26. Qxf5 {[%clk 0:00:44]}  Qxf5 {[%clk 0:01:15]} 27. Rxf5 {[%clk 0:00:44]}  d4 {[%clk 0:01:15]} 28. Nf1 {[%clk 0:00:35]}  Re2 {[%clk 0:01:15]} 29. Rf2 {[%clk 0:00:27]}  dxc3 {[%clk 0:01:13]} 30. Rxe2 {[%clk 0:00:26]}  Rxe2 {[%clk 0:01:14]} 31. bxc3 {[%clk 0:00:26]}  Bxc3 {[%clk 0:01:13]} 32. Rb1 {[%clk 0:00:26]}  Bd4+ {[%clk 0:01:14]} 33. Kh1 {[%clk 0:00:25]}  b5 {[%clk 0:01:13]} 34. Rd1 {[%clk 0:00:21]}  c5 {[%clk 0:01:13]} 35. a3 {[%clk 0:00:20]}  Ra2 {[%clk 0:01:12]} 36. Bd6 {[%clk 0:00:19]}  a5 {[%clk 0:00:59]} 37. Ng3 {[%clk 0:00:18]}  Rxa3 {[%clk 0:00:56]} 38. Nf5 {[%clk 0:00:17]}  Bf2 {[%clk 0:00:52]} 39. Rf1 {[%clk 0:00:15]}  Ra2 {[%clk 0:00:52]} 40. Nxh6+ {[%clk 0:00:12]}  Kg7 {[%clk 0:00:52]} 41. Ng4 {[%clk 0:00:12]}  Bd4 {[%clk 0:00:51]} 42. Be5+ {[%clk 0:00:13]}  Bxe5 {[%clk 0:00:51]} 43. Nxe5 {[%clk 0:00:14]}  f6 {[%clk 0:00:51]} 44. Nd3 {[%clk 0:00:13]}  c4 {[%clk 0:00:51]} 45. Nf4 {[%clk 0:00:13]}  b4 {[%clk 0:00:49]} 46. Nd5 {[%clk 0:00:13]}  c3 {[%clk 0:00:49]} 47. Rg1+ {[%clk 0:00:14]}  Kf7 {[%clk 0:00:49]} 48. Rc1 {[%clk 0:00:14]}  c2 {[%clk 0:00:48]} 49. Ne3 {[%clk 0:00:12]}  b3 {[%clk 0:00:49]} 50. Nxc2 {[%clk 0:00:11]}  Rxc2 {[%clk 0:00:48]} 51. h4 {[%clk 0:00:12]}  Rxc1+ {[%clk 0:00:48]} 0-1


[Site "https://www.chess.com"]

[Event "Titled Tuesday Blitz April 4 Early 2023"]
[White "Antonio, Jorge Carlos"]
[Black "Omariev, Maksim"]
[WhiteFideId "113190"]
[BlackFideId "4193423"]
[WhiteElo "2247"]
[BlackElo "2411"]
[Result "0-1"]
[Round "11"]
[TimeControl "180+2"]
[Date "2023.04.04"]
[WhiteClock "0:00:01"]
[BlackClock "0:00:04"]

1. d4 {[%clk 0:03:00]}  g6 {[%clk 0:02:52]} 2. Nf3 {[%clk 0:03:00]}  Bg7 {[%clk 0:02:52]} 3. c4 {[%clk 0:03:00]}  d6 {[%clk 0:02:53]} 4. Nc3 {[%clk 0:03:00]}  Nc6 {[%clk 0:02:53]} 5. e4 {[%clk 0:02:58]}  e5 {[%clk 0:02:53]} 6. d5 {[%clk 0:02:56]}  Nce7 {[%clk 0:02:53]} 7. Be2 {[%clk 0:02:50]}  f5 {[%clk 0:02:54]} 8. O-O {[%clk 0:02:48]}  h6 {[%clk 0:02:51]} 9. exf5 {[%clk 0:02:39]}  gxf5 {[%clk 0:02:52]} 10. Re1 {[%clk 0:02:32]}  Nf6 {[%clk 0:02:52]} 11. Nh4 {[%clk 0:02:22]}  O-O {[%clk 0:02:52]} 12. Bh5 {[%clk 0:02:15]}  Kh7 {[%clk 0:02:51]} 13. Be2 {[%clk 0:02:00]}  Qe8 {[%clk 0:02:45]} 14. f4 {[%clk 0:01:58]}  e4 {[%clk 0:02:36]} 15. g3 {[%clk 0:01:55]}  Bd7 {[%clk 0:02:31]} 16. Be3 {[%clk 0:01:53]}  Qf7 {[%clk 0:02:31]} 17. Ng2 {[%clk 0:01:44]}  h5 {[%clk 0:02:28]} 18. h3 {[%clk 0:01:38]}  Rh8 {[%clk 0:02:27]} 19. Nh4 {[%clk 0:01:32]}  a6 {[%clk 0:02:26]} 20. Kh2 {[%clk 0:01:30]}  Rag8 {[%clk 0:02:24]} 21. Rg1 {[%clk 0:01:29]}  Bh6 {[%clk 0:02:14]} 22. Bd4 {[%clk 0:01:24]}  Rg7 {[%clk 0:02:12]} 23. Qe1 {[%clk 0:01:16]}  Kg8 {[%clk 0:02:11]} 24. b4 {[%clk 0:01:12]}  Rhh7 {[%clk 0:01:53]} 25. Rd1 {[%clk 0:01:10]}  Ng6 {[%clk 0:01:49]} 26. Nxg6 {[%clk 0:01:08]}  Rxg6 {[%clk 0:01:50]} 27. Bxf6 {[%clk 0:01:05]}  Qxf6 {[%clk 0:01:48]} 28. Bxh5 {[%clk 0:01:04]}  Rgg7 {[%clk 0:01:34]} 29. Be2 {[%clk 0:00:55]}  Rg6 {[%clk 0:01:05]} 30. Qd2 {[%clk 0:00:52]}  Bg7 {[%clk 0:01:03]} 31. Nb1 {[%clk 0:00:39]}  Rgh6 {[%clk 0:01:00]} 32. h4 {[%clk 0:00:38]}  Rxh4+ {[%clk 0:00:58]} 33. gxh4 {[%clk 0:00:34]}  Qxh4+ {[%clk 0:00:59]} 34. Kg2 {[%clk 0:00:34]}  Qh2+ {[%clk 0:00:56]} 35. Kf1 {[%clk 0:00:32]}  Kf8 {[%clk 0:00:39]} 36. Qe3 {[%clk 0:00:31]}  Ba4 {[%clk 0:00:34]} 37. Rd2 {[%clk 0:00:27]}  Bh6 {[%clk 0:00:04]} 38. Qg3 {[%clk 0:00:26]}  Qxg3 {[%clk 0:00:03]} 39. Rxg3 {[%clk 0:00:25]}  Bxf4 {[%clk 0:00:04]} 40. Rg1 {[%clk 0:00:22]}  Bxd2 {[%clk 0:00:02]} 41. Nxd2 {[%clk 0:00:22]}  Kf7 {[%clk 0:00:03]} 42. a3 {[%clk 0:00:20]}  Kf6 {[%clk 0:00:03]} 43. Kf2 {[%clk 0:00:18]}  Ke5 {[%clk 0:00:02]} 44. Nf1 {[%clk 0:00:17]}  f4 {[%clk 0:00:03]} 45. Bg4 {[%clk 0:00:13]}  Kd4 {[%clk 0:00:02]} 46. Bf5 {[%clk 0:00:09]}  Rf7 {[%clk 0:00:01]} 47. Be6 {[%clk 0:00:09]}  Rf6 {[%clk 0:00:01]} 48. Rg4 {[%clk 0:00:08]}  Kxc4 {[%clk 0:00:01]} 49. Nd2+ {[%clk 0:00:07]}  Kd4 {[%clk 0:00:02]} 50. Nf1 {[%clk 0:00:04]}  Bb3 {[%clk 0:00:02]} 51. Ke2 {[%clk 0:00:04]}  Bc4+ {[%clk 0:00:02]} 52. Ke1 {[%clk 0:00:04]}  Bxd5 {[%clk 0:00:02]} 53. Bxd5 {[%clk 0:00:03]}  Kxd5 {[%clk 0:00:03]} 54. Rg7 {[%clk 0:00:03]}  Kc6 {[%clk 0:00:02]} 55. Rg4 {[%clk 0:00:02]}  d5 {[%clk 0:00:03]} 56. Nd2 {[%clk 0:00:02]}  Kb5 {[%clk 0:00:02]} 57. Nb3 {[%clk 0:00:02]}  b6 {[%clk 0:00:03]} 58. Nd4+ {[%clk 0:00:02]}  Ka4 {[%clk 0:00:03]} 59. Nc2 {[%clk 0:00:01]}  Kb3 {[%clk 0:00:03]} 60. Rg2 {[%clk 0:00:01]}  f3 {[%clk 0:00:03]} 61. Rh2 {[%clk 0:00:01]}  c5 {[%clk 0:00:04]} 0-1


[Site "https://www.chess.com"]

[Event "Titled Tuesday Blitz April 4 Early 2023"]
[White "Krzywda, Andrzej"]
[Black "Blokhin, Sofia"]
[WhiteFideId "1114565"]
[BlackFideId "4508190"]
[WhiteElo "2155"]
[BlackElo "1994"]
[Result "1-0"]
[Round "11"]
[TimeControl "180+2"]
[Date "2023.04.04"]
[WhiteClock "0:01:23"]
[BlackClock "0:01:01"]

1. c4 {[%clk 0:03:00]}  c5 {[%clk 0:02:58]} 2. Nc3 {[%clk 0:02:59]}  Nf6 {[%clk 0:02:58]} 3. g3 {[%clk 0:02:59]}  d5 {[%clk 0:02:58]} 4. cxd5 {[%clk 0:02:59]}  Nxd5 {[%clk 0:02:58]} 5. Bg2 {[%clk 0:02:59]}  Nc7 {[%clk 0:02:58]} 6. e3 {[%clk 0:02:58]}  Nc6 {[%clk 0:02:57]} 7. Nge2 {[%clk 0:02:58]}  e5 {[%clk 0:02:57]} 8. O-O {[%clk 0:02:58]}  Be7 {[%clk 0:02:57]} 9. f4 {[%clk 0:02:58]}  O-O {[%clk 0:02:53]} 10. b3 {[%clk 0:02:54]}  exf4 {[%clk 0:02:50]} 11. Nxf4 {[%clk 0:02:54]}  Bf5 {[%clk 0:02:40]} 12. Bb2 {[%clk 0:02:42]}  Bf6 {[%clk 0:02:34]} 13. Nh5 {[%clk 0:02:34]}  g6 {[%clk 0:02:04]} 14. Nxf6+ {[%clk 0:02:16]}  Qxf6 {[%clk 0:02:03]} 15. g4 {[%clk 0:02:13]}  Qg5 {[%clk 0:01:53]} 16. gxf5 {[%clk 0:02:10]}  gxf5 {[%clk 0:01:52]} 17. Qf3 {[%clk 0:01:57]}  Ne5 {[%clk 0:01:43]} 18. Qxf5 {[%clk 0:01:53]}  Qe7 {[%clk 0:01:38]} 19. Nd5 {[%clk 0:01:44]}  Nxd5 {[%clk 0:01:35]} 20. Bxd5 {[%clk 0:01:43]}  Ng6 {[%clk 0:01:29]} 21. Bf6 {[%clk 0:01:37]}  Qd6 {[%clk 0:01:24]} 22. Qg5 {[%clk 0:01:35]}  Rfe8 {[%clk 0:01:08]} 23. Bxf7+ {[%clk 0:01:26]}  Kxf7 {[%clk 0:01:06]} 24. Be5+ {[%clk 0:01:26]}  Ke6 {[%clk 0:01:01]} 25. Qf6+ {[%clk 0:01:23]} 1-0


[Site "https://www.chess.com"]

[Event "Titled Tuesday Blitz April 4 Early 2023"]
[White "Grabinsky, Vladimir"]
[Black "Melikhov, Evgeny V."]
[WhiteFideId "14107074"]
[BlackFideId "4122046"]
[WhiteElo "2027"]
[BlackElo "2158"]
[Result "0-1"]
[Round "11"]
[TimeControl "180+2"]
[Date "2023.04.04"]
[WhiteClock "0:00:03"]
[BlackClock "0:00:18"]

1. e4 {[%clk 0:02:55]}  c5 {[%clk 0:02:59]} 2. b4 {[%clk 0:02:51]}  b6 {[%clk 0:02:58]} 3. bxc5 {[%clk 0:02:49]}  bxc5 {[%clk 0:02:58]} 4. Bc4 {[%clk 0:02:48]}  e6 {[%clk 0:02:55]} 5. Nf3 {[%clk 0:02:48]}  Nc6 {[%clk 0:02:55]} 6. O-O {[%clk 0:02:45]}  Nf6 {[%clk 0:02:36]} 7. e5 {[%clk 0:02:42]}  Nd5 {[%clk 0:02:36]} 8. Bxd5 {[%clk 0:02:39]}  exd5 {[%clk 0:02:36]} 9. Nc3 {[%clk 0:02:40]}  d6 {[%clk 0:02:24]} 10. Re1 {[%clk 0:02:16]}  dxe5 {[%clk 0:02:05]} 11. Nxe5 {[%clk 0:02:16]}  Nxe5 {[%clk 0:02:05]} 12. Rxe5+ {[%clk 0:02:17]}  Be6 {[%clk 0:02:04]} 13. Nxd5 {[%clk 0:02:05]}  Bd6 {[%clk 0:02:04]} 14. Re3 {[%clk 0:01:15]}  Bxh2+ {[%clk 0:02:00]} 15. Kxh2 {[%clk 0:01:13]}  Qxd5 {[%clk 0:01:58]} 16. Bb2 {[%clk 0:01:06]}  O-O {[%clk 0:01:57]} 17. Re5 {[%clk 0:00:47]}  Qd6 {[%clk 0:01:49]} 18. Kg1 {[%clk 0:00:40]}  f6 {[%clk 0:01:48]} 19. Re3 {[%clk 0:00:37]}  Bf5 {[%clk 0:01:19]} 20. d3 {[%clk 0:00:33]}  Rfe8 {[%clk 0:01:14]} 21. Qf3 {[%clk 0:00:31]}  Bg6 {[%clk 0:01:11]} 22. Rae1 {[%clk 0:00:29]}  Qd7 {[%clk 0:00:59]} 23. Re7 {[%clk 0:00:16]}  Rxe7 {[%clk 0:00:54]} 24. Qxa8+ {[%clk 0:00:15]}  Re8 {[%clk 0:00:44]} 25. Rxe8+ {[%clk 0:00:13]}  Bxe8 {[%clk 0:00:43]} 26. Ba3 {[%clk 0:00:11]}  c4 {[%clk 0:00:30]} 27. Qe4 {[%clk 0:00:04]}  cxd3 {[%clk 0:00:27]} 28. cxd3 {[%clk 0:00:04]}  Bg6 {[%clk 0:00:20]} 29. Qc4+ {[%clk 0:00:03]}  Bf7 {[%clk 0:00:18]} 0-1


[Site "https://www.chess.com"]

[Event "Titled Tuesday Blitz April 4 Early 2023"]
[White "Tokman, Ariel"]
[Black "Tagliata"]
[WhiteFideId "117420"]
[WhiteElo "2263"]
[BlackElo "2289"]
[Result "1-0"]
[Round "11"]
[TimeControl "180+2"]
[Date "2023.04.04"]
[WhiteClock "0:02:46"]
[BlackClock "0:02:33"]

1. b3 {[%clk 0:03:00]}  e5 {[%clk 0:02:57]} 2. Bb2 {[%clk 0:03:01]}  Nc6 {[%clk 0:02:57]} 3. e3 {[%clk 0:03:02]}  a6 {[%clk 0:02:54]} 4. Nf3 {[%clk 0:03:00]}  Bd6 {[%clk 0:02:49]} 5. d4 {[%clk 0:02:59]}  exd4 {[%clk 0:02:49]} 6. Nxd4 {[%clk 0:02:59]}  Nxd4 {[%clk 0:02:48]} 7. Qxd4 {[%clk 0:02:58]}  Nf6 {[%clk 0:02:47]} 8. Be2 {[%clk 0:02:59]}  O-O {[%clk 0:02:45]} 9. O-O {[%clk 0:02:59]}  Qe7 {[%clk 0:02:40]} 10. Nc3 {[%clk 0:02:54]}  Rb8 {[%clk 0:02:38]} 11. Rad1 {[%clk 0:02:52]}  Be5 {[%clk 0:02:37]} 12. Nd5 {[%clk 0:02:46]}  Nxd5 {[%clk 0:02:34]} 13. Qxe5 {[%clk 0:02:45]}  Qxe5 {[%clk 0:02:33]} 14. Bxe5 {[%clk 0:02:46]} 1-0


[Site "https://www.chess.com"]

[Event "Titled Tuesday Blitz April 4 Early 2023"]
[White "Golubev, Mikhail"]
[Black "babbilator"]
[WhiteFideId "14100983"]
[WhiteElo "2374"]
[BlackElo "2263"]
[Result "1-0"]
[Round "11"]
[TimeControl "180+2"]
[Date "2023.04.04"]
[WhiteClock "0:01:33"]
[BlackClock "0:00:57"]

1. e4 {[%clk 0:03:00]}  c5 {[%clk 0:02:58]} 2. Nf3 {[%clk 0:02:59]}  e6 {[%clk 0:02:59]} 3. d4 {[%clk 0:02:59]}  cxd4 {[%clk 0:02:59]} 4. Nxd4 {[%clk 0:03:00]}  Nc6 {[%clk 0:03:00]} 5. Nc3 {[%clk 0:03:00]}  Qc7 {[%clk 0:03:00]} 6. Be3 {[%clk 0:03:00]}  a6 {[%clk 0:02:59]} 7. a3 {[%clk 0:02:59]}  Nf6 {[%clk 0:02:59]} 8. f4 {[%clk 0:02:58]}  d6 {[%clk 0:02:59]} 9. Qf3 {[%clk 0:02:57]}  Be7 {[%clk 0:02:52]} 10. O-O-O {[%clk 0:02:54]}  h5 {[%clk 0:02:27]} 11. Be2 {[%clk 0:02:16]}  Bd7 {[%clk 0:02:25]} 12. Rhf1 {[%clk 0:02:05]}  O-O-O {[%clk 0:02:22]} 13. Qf2 {[%clk 0:01:56]}  Kb8 {[%clk 0:01:19]} 14. Nb3 {[%clk 0:01:41]}  Na5 {[%clk 0:00:57]} 15. Nxa5 {[%clk 0:01:33]}  Qxa5 {[%clk 0:00:57]} 1-0


[Site "https://www.chess.com"]

[Event "Titled Tuesday Blitz April 4 Early 2023"]
[White "Tsotsonava, Elene"]
[Black "Carrasco Miranda, Andres"]
[WhiteFideId "13615939"]
[BlackFideId "3405990"]
[WhiteElo "1829"]
[BlackElo "2183"]
[Result "1-0"]
[Round "11"]
[TimeControl "180+2"]
[Date "2023.04.04"]
[WhiteClock "0:00:45"]
[BlackClock "0:00:02"]

1. e4 {[%clk 0:02:58]}  c5 {[%clk 0:02:56]} 2. Nf3 {[%clk 0:02:57]}  d6 {[%clk 0:02:56]} 3. d4 {[%clk 0:02:58]}  cxd4 {[%clk 0:02:56]} 4. Nxd4 {[%clk 0:02:58]}  Nf6 {[%clk 0:02:57]} 5. Nc3 {[%clk 0:02:59]}  a6 {[%clk 0:02:57]} 6. Bg5 {[%clk 0:02:59]}  e6 {[%clk 0:02:56]} 7. f4 {[%clk 0:03:00]}  h6 {[%clk 0:02:56]} 8. Bh4 {[%clk 0:03:00]}  Qb6 {[%clk 0:02:57]} 9. a3 {[%clk 0:03:01]}  Be7 {[%clk 0:02:49]} 10. Bf2 {[%clk 0:02:58]}  Qc7 {[%clk 0:02:49]} 11. Qf3 {[%clk 0:02:56]}  Nc6 {[%clk 0:02:48]} 12. O-O-O {[%clk 0:02:56]}  Nxd4 {[%clk 0:02:47]} 13. Rxd4 {[%clk 0:02:54]}  Bd7 {[%clk 0:02:48]} 14. Rc4 {[%clk 0:02:53]}  Bc6 {[%clk 0:02:47]} 15. Nd5 {[%clk 0:02:47]}  exd5 {[%clk 0:02:47]} 16. exd5 {[%clk 0:02:47]}  Nxd5 {[%clk 0:02:20]} 17. Qxd5 {[%clk 0:02:46]}  Bxd5 {[%clk 0:02:20]} 18. Rxc7 {[%clk 0:02:47]}  Bc6 {[%clk 0:02:21]} 19. Rg1 {[%clk 0:02:39]}  Bd8 {[%clk 0:02:17]} 20. Bb6 {[%clk 0:02:32]}  Bxc7 {[%clk 0:02:16]} 21. Bxc7 {[%clk 0:02:33]}  Kd7 {[%clk 0:02:16]} 22. Ba5 {[%clk 0:02:33]}  Bb5 {[%clk 0:01:32]} 23. c4 {[%clk 0:02:18]}  Rac8 {[%clk 0:01:31]} 24. b3 {[%clk 0:02:11]}  d5 {[%clk 0:01:16]} 25. Bd3 {[%clk 0:02:01]}  g6 {[%clk 0:01:14]} 26. Rd1 {[%clk 0:01:58]}  dxc4 {[%clk 0:00:10]} 27. Bxg6+ {[%clk 0:01:41]}  Ke6 {[%clk 0:00:07]} 28. f5+ {[%clk 0:01:39]}  Kf6 {[%clk 0:00:07]} 29. Bc3+ {[%clk 0:01:36]}  Kg5 {[%clk 0:00:07]} 30. Bxf7 {[%clk 0:01:24]}  cxb3 {[%clk 0:00:05]} 31. Kb2 {[%clk 0:01:19]}  Rhf8 {[%clk 0:00:03]} 32. Be6 {[%clk 0:01:14]}  Rcd8 {[%clk 0:00:01]} 33. Rxd8 {[%clk 0:01:01]}  Rxd8 {[%clk 0:00:02]} 34. h4+ {[%clk 0:01:01]}  Kf4 {[%clk 0:00:01]} 35. f6 {[%clk 0:00:55]}  Kg3 {[%clk 0:00:01]} 36. f7 {[%clk 0:00:51]}  Kxg2 {[%clk 0:00:01]} 37. Bg7 {[%clk 0:00:47]}  Kf3 {[%clk 0:00:01]} 38. f8=Q+ {[%clk 0:00:46]}  Rxf8 {[%clk 0:00:01]} 39. Bxf8 {[%clk 0:00:46]}  h5 {[%clk 0:00:01]} 40. Kxb3 {[%clk 0:00:44]}  Kg3 {[%clk 0:00:02]} 41. Be7 {[%clk 0:00:45]} 1-0


[Site "https://www.chess.com"]

[Event "Titled Tuesday Blitz April 4 Early 2023"]
[White "Skaric, Djuro"]
[Black "Mikhaylova, Irina"]
[WhiteFideId "934569"]
[BlackFideId "4109040"]
[WhiteElo "2282"]
[BlackElo "1975"]
[Result "1-0"]
[Round "11"]
[TimeControl "180+2"]
[Date "2023.04.04"]
[WhiteClock "0:00:13"]
[BlackClock "0:00:06"]

1. g3 {[%clk 0:02:56]}  g6 {[%clk 0:02:59]} 2. Bg2 {[%clk 0:02:55]}  Bg7 {[%clk 0:03:00]} 3. d3 {[%clk 0:02:56]}  Nf6 {[%clk 0:02:59]} 4. Nf3 {[%clk 0:02:57]}  O-O {[%clk 0:03:00]} 5. O-O {[%clk 0:02:58]}  d5 {[%clk 0:03:00]} 6. Nc3 {[%clk 0:02:59]}  c5 {[%clk 0:03:01]} 7. e4 {[%clk 0:02:59]}  Nc6 {[%clk 0:02:53]} 8. h3 {[%clk 0:02:58]}  d4 {[%clk 0:02:48]} 9. Ne2 {[%clk 0:02:58]}  e5 {[%clk 0:02:48]} 10. Ne1 {[%clk 0:02:58]}  b5 {[%clk 0:02:42]} 11. f4 {[%clk 0:02:58]}  Nd7 {[%clk 0:02:41]} 12. f5 {[%clk 0:02:58]}  c4 {[%clk 0:02:33]} 13. g4 {[%clk 0:02:58]}  cxd3 {[%clk 0:02:28]} 14. cxd3 {[%clk 0:02:57]}  Nc5 {[%clk 0:02:29]} 15. Rf2 {[%clk 0:02:54]}  Na4 {[%clk 0:02:20]} 16. Ng3 {[%clk 0:02:49]}  Bd7 {[%clk 0:02:18]} 17. Nh1 {[%clk 0:02:47]}  Rc8 {[%clk 0:02:16]} 18. Bf1 {[%clk 0:02:42]}  Bf6 {[%clk 0:02:10]} 19. Nf3 {[%clk 0:02:40]}  Bg7 {[%clk 0:02:00]} 20. Ng3 {[%clk 0:02:37]}  f6 {[%clk 0:01:22]} 21. h4 {[%clk 0:02:21]}  Qe7 {[%clk 0:01:17]} 22. g5 {[%clk 0:02:09]}  gxf5 {[%clk 0:01:06]} 23. exf5 {[%clk 0:02:02]}  e4 {[%clk 0:01:06]} 24. Nxe4 {[%clk 0:01:56]}  Bxf5 {[%clk 0:01:03]} 25. gxf6 {[%clk 0:01:56]}  Bxf6 {[%clk 0:01:03]} 26. Neg5 {[%clk 0:01:54]}  Kh8 {[%clk 0:00:47]} 27. Nh2 {[%clk 0:01:51]}  Be5 {[%clk 0:00:35]} 28. Qh5 {[%clk 0:01:36]}  Bg6 {[%clk 0:00:32]} 29. Qg4 {[%clk 0:01:32]}  Rcd8 {[%clk 0:00:18]} 30. Rxf8+ {[%clk 0:01:23]}  Rxf8 {[%clk 0:00:18]} 31. Nhf3 {[%clk 0:01:20]}  Qf6 {[%clk 0:00:16]} 32. Bg2 {[%clk 0:00:56]}  h6 {[%clk 0:00:16]} 33. Ne4 {[%clk 0:00:55]}  Bxe4 {[%clk 0:00:15]} 34. dxe4 {[%clk 0:00:54]}  Bf4 {[%clk 0:00:14]} 35. e5 {[%clk 0:00:47]}  Qf5 {[%clk 0:00:13]} 36. Qxf5 {[%clk 0:00:46]}  Rxf5 {[%clk 0:00:14]} 37. Bxf4 {[%clk 0:00:46]}  Rxf4 {[%clk 0:00:15]} 38. Re1 {[%clk 0:00:46]}  Nxb2 {[%clk 0:00:12]} 39. e6 {[%clk 0:00:46]}  Nd3 {[%clk 0:00:12]} 40. e7 {[%clk 0:00:45]}  Nxe7 {[%clk 0:00:12]} 41. Rxe7 {[%clk 0:00:45]}  Nc5 {[%clk 0:00:12]} 42. Re8+ {[%clk 0:00:44]}  Kg7 {[%clk 0:00:12]} 43. Rc8 {[%clk 0:00:43]}  Ne6 {[%clk 0:00:12]} 44. Ra8 {[%clk 0:00:38]}  Kf6 {[%clk 0:00:12]} 45. Rxa7 {[%clk 0:00:37]}  d3 {[%clk 0:00:12]} 46. Rd7 {[%clk 0:00:37]}  Ra4 {[%clk 0:00:11]} 47. Rxd3 {[%clk 0:00:35]}  Rxa2 {[%clk 0:00:11]} 48. Rb3 {[%clk 0:00:35]}  Nf4 {[%clk 0:00:11]} 49. Bf1 {[%clk 0:00:35]}  Ra5 {[%clk 0:00:11]} 50. Nd4 {[%clk 0:00:34]}  b4 {[%clk 0:00:11]} 51. Rxb4 {[%clk 0:00:34]}  Ra1 {[%clk 0:00:10]} 52. Rb6+ {[%clk 0:00:28]}  Ke5 {[%clk 0:00:11]} 53. Nc2 {[%clk 0:00:26]}  Rc1 {[%clk 0:00:10]} 54. Rb2 {[%clk 0:00:23]}  Ng6 {[%clk 0:00:09]} 55. Rb5+ {[%clk 0:00:18]}  Ke4 {[%clk 0:00:07]} 56. Rb4+ {[%clk 0:00:18]}  Ke5 {[%clk 0:00:07]} 57. Ne3 {[%clk 0:00:17]}  Nf4 {[%clk 0:00:07]} 58. Ng4+ {[%clk 0:00:17]}  Kd5 {[%clk 0:00:07]} 59. Nxh6 {[%clk 0:00:16]}  Nd3 {[%clk 0:00:07]} 60. Rb5+ {[%clk 0:00:15]}  Kc6 {[%clk 0:00:07]} 61. Rg5 {[%clk 0:00:14]}  Ne1 {[%clk 0:00:08]} 62. Kf2 {[%clk 0:00:13]}  Nd3+ {[%clk 0:00:08]} 63. Bxd3 {[%clk 0:00:12]}  Ra1 {[%clk 0:00:08]} 64. Ke3 {[%clk 0:00:12]}  Ra2 {[%clk 0:00:09]} 65. Nf5 {[%clk 0:00:13]}  Ra5 {[%clk 0:00:09]} 66. h5 {[%clk 0:00:12]}  Ra1 {[%clk 0:00:10]} 67. h6 {[%clk 0:00:13]}  Re1+ {[%clk 0:00:10]} 68. Be2 {[%clk 0:00:09]}  Rh1 {[%clk 0:00:11]} 69. Bh5 {[%clk 0:00:09]}  Rh3+ {[%clk 0:00:12]} 70. Kf4 {[%clk 0:00:09]}  Rh2 {[%clk 0:00:13]} 71. h7 {[%clk 0:00:09]}  Rf2+ {[%clk 0:00:13]} 72. Ke5 {[%clk 0:00:10]}  Re2+ {[%clk 0:00:13]} 73. Kf6 {[%clk 0:00:10]}  Re8 {[%clk 0:00:14]} 74. Ne7+ {[%clk 0:00:10]}  Rxe7 {[%clk 0:00:14]} 75. Kxe7 {[%clk 0:00:10]}  Kb6 {[%clk 0:00:06]} 76. h8=Q {[%clk 0:00:11]}  Kc7 {[%clk 0:00:06]} 77. Rc5+ {[%clk 0:00:11]}  Kb6 {[%clk 0:00:06]} 78. Qd4 {[%clk 0:00:11]}  Kb7 {[%clk 0:00:06]} 79. Qb4+ {[%clk 0:00:12]}  Ka6 {[%clk 0:00:06]} 80. Ra5# {[%clk 0:00:13]} 1-0


[Site "https://www.chess.com"]

[Event "Titled Tuesday Blitz April 4 Early 2023"]
[White "Zaichenko, Daria"]
[Black "Hnydiuk, Aleksander"]
[WhiteFideId "4197453"]
[BlackFideId "1109057"]
[WhiteElo "2039"]
[BlackElo "2374"]
[Result "1-0"]
[Round "11"]
[TimeControl "180+2"]
[Date "2023.04.04"]
[WhiteClock "0:01:32"]
[BlackClock "0:02:26"]

1. e4 {[%clk 0:02:56]}  g6 {[%clk 0:03:00]} 2. d4 {[%clk 0:02:56]}  Bg7 {[%clk 0:03:01]} 3. f4 {[%clk 0:02:56]}  Nf6 {[%clk 0:03:02]} 4. Bd3 {[%clk 0:02:50]}  Nxe4 {[%clk 0:03:03]} 5. Bxe4 {[%clk 0:02:48]}  d5 {[%clk 0:02:57]} 6. Bf3 {[%clk 0:02:46]}  c5 {[%clk 0:02:55]} 7. dxc5 {[%clk 0:02:33]}  Qa5+ {[%clk 0:02:54]} 8. Qd2 {[%clk 0:02:27]}  Qxc5 {[%clk 0:02:53]} 9. Qxd5 {[%clk 0:02:23]}  Qxc2 {[%clk 0:02:53]} 10. Qd2 {[%clk 0:02:18]}  Qc7 {[%clk 0:02:51]} 11. Nc3 {[%clk 0:02:17]}  Nc6 {[%clk 0:02:51]} 12. Nd5 {[%clk 0:02:11]}  Qd6 {[%clk 0:02:49]} 13. Ne2 {[%clk 0:02:07]}  O-O {[%clk 0:02:49]} 14. O-O {[%clk 0:02:04]}  Bf5 {[%clk 0:02:50]} 15. Ndc3 {[%clk 0:02:00]}  Rfd8 {[%clk 0:02:48]} 16. Qxd6 {[%clk 0:01:59]}  Rxd6 {[%clk 0:02:48]} 17. Be3 {[%clk 0:01:59]}  Rd3 {[%clk 0:02:47]} 18. Bc5 {[%clk 0:01:54]}  Rc8 {[%clk 0:02:46]} 19. Bxc6 {[%clk 0:01:47]}  Rxc6 {[%clk 0:02:47]} 20. Bxe7 {[%clk 0:01:47]}  b5 {[%clk 0:02:45]} 21. Rad1 {[%clk 0:01:44]}  Rc4 {[%clk 0:02:39]} 22. Rxd3 {[%clk 0:01:42]}  Bxd3 {[%clk 0:02:40]} 23. Rd1 {[%clk 0:01:41]}  Bxc3 {[%clk 0:02:28]} 24. Nxc3 {[%clk 0:01:33]}  Bf5 {[%clk 0:02:26]} 25. Bf6 {[%clk 0:01:32]} 1-0


[Site "https://www.chess.com"]